bitfinex/quotes_ETHUSD_20260129
["timestamp","ask_amount","ask_price","bid_price","bid_amount"]
[1769686821985,14.79844856,2929.9,2929.5,0.85338795]
[1769686823117,1.3329396,2929.9,2929.3,0.002]
[1769686823310,0.001,2930.0,2929.3,0.002]
[1769686823826,0.001,2930.0,2929.3,13.37475922]
[1769686824989,0.001,2930.2,2929.7,21.71488832]
[1769686825201,0.001,2930.2,2929.5,13.55855995]
[1769686825404,0.001,2930.2,2929.6,15.74862885]
[1769686826533,13.91173308,2930.2,2929.4,13.55855995]
[1769686827839,13.91173308,2930.2,2929.5,0.85338795]
[1769686828738,0.04266066,2930.1,2929.5,0.85338795]
[1769686829037,13.91073308,2930.0,2929.5,0.85338795]
[1769686829620,0.04266357,2929.9,2929.5,0.85338795]
[1769686829820,0.04266357,2929.9,2929.4,3.4135518]
[1769686829821,1.39533967,2929.9,2929.3,0.002]
[1769686830015,13.91073308,2930.0,2929.3,0.002]
[1769686832817,13.26306412,2930.2,2929.3,13.71739492]
[1769686833022,13.30472478,2930.1,2929.3,0.002]
[1769686833224,0.001,2930.0,2929.3,0.002]
[1769686835340,0.001,2930.0,2929.3,14.57084113]
[1769686835919,0.001,2930.0,2929.3,16.71088872]
[1769686839046,0.001,2930.2,2929.6,13.71539492]
[1769686840739,0.001,2930.2,2929.7,0.85332969]
[1769686842952,0.001,2930.2,2929.5,0.85338795]
[1769686843518,0.001,2930.2,2929.6,0.03413435]
[1769686843723,0.001,2930.2,2929.7,15.17568664]
[1769686844324,0.001,2930.2,2929.5,0.85338795]
[1769686844643,0.001,2930.0,2929.5,0.85338795]
[1769686846139,13.26306412,2930.0,2929.5,0.74034896]
[1769686847538,13.26306412,2930.0,2929.4,3.4136433]
[1769686847736,1.32630641,2929.9,2929.4,3.4136433]
[1769686849430,0.001,2930.0,2929.7,14.56872461]
[1769686852739,0.001,2930.0,2929.7,0.85332969]
[1769686853760,0.001,2930.0,2929.6,3.41331876]
[1769686856834,0.001,2929.8,2929.6,3.41331876]
[1769686857067,0.001,2929.8,2929.6,5.55289095]
[1769686859463,0.001,2929.8,2929.6,3.41331876]
[1769686861442,0.001,2929.8,2929.4,3.41365664]
[1769686862881,0.001,2929.8,2929.5,13.56960148]
[1769686863039,0.001,2930.0,2929.5,13.56960148]
[1769686863671,0.001,2930.0,2929.6,0.85335882]
[1769686867885,0.001,2930.0,2929.3,0.002]
[1769686868086,0.001,2930.0,2929.4,1.44250768]
[1769686868871,0.001,2929.8,2929.3,0.002]
[1769686872103,0.001,2930.0,2929.3,0.002]
[1769686873397,5.56807344,2930.0,2929.3,0.002]
[1769686874503,0.001,2930.0,2929.4,13.56960148]
[1769686874703,0.001,2930.2,2929.7,13.56960148]
[1769686875108,0.001,2930.2,2929.5,2.19468831]
[1769686875405,0.001,2930.2,2929.6,0.85335882]
[1769686875578,0.001,2930.2,2929.6,14.4229603]
[1769686878926,0.001,2930.2,2929.6,0.85335882]
[1769686879230,5.56807344,2930.2,2929.6,0.85335882]
[1769686879592,0.04266066,2930.1,2929.5,3.41343528]
[1769686879794,0.04266066,2930.1,2929.5,5.19727775]
[1769686880026,5.56807344,2930.2,2929.5,5.19727775]
[1769686880336,0.001,2930.2,2929.5,5.19727775]
[1769686880642,0.001,2930.2,2929.8,0.002]
[1769686880919,0.001,2930.0,2929.8,0.002]
[1769686888837,0.04365483,2930.5,2929.9,13.6583474]
[1769686888838,0.001,2930.5,2929.9,13.6583474]
[1769686891554,0.001,2930.5,2929.9,14.51159833]
[1769686893358,0.001,2930.3,2929.9,14.51159833]
[1769686903375,0.001,2930.3,2929.8,2.22131107]
[1769686903673,0.001,2930.3,2929.8,0.002]
[1769686903861,0.04365774,2930.3,2929.8,0.002]
[1769686904878,0.04365774,2930.3,2930.1,0.002]
[1769686907284,0.001,2930.3,2930.1,0.002]
[1769686909902,0.04365774,2930.3,2930.1,0.002]
[1769686910485,0.04365774,2930.3,2929.5,0.85537449]
[1769686910486,5.56509344,2930.2,2929.5,0.85537449]
[1769686910685,1.4376685,2930.1,2929.5,0.002]
[1769686911089,1.4376685,2930.1,2929.5,0.85538274]
[1769686911479,1.4376685,2930.1,2929.5,0.85538795]
[1769686912072,1.4376685,2930.1,2929.5,13.67041455]
[1769686912274,0.04266066,2930.1,2929.5,13.67041455]
[1769686912590,0.04365774,2930.3,2929.5,13.67041455]
[1769686913882,5.60677118,2930.3,2929.5,13.67041455]
[1769686914083,6.45992713,2930.3,2929.5,13.67041455]
[1769686914465,6.4599311,2930.3,2929.5,13.67041455]
[1769686915768,6.4599311,2930.3,2929.5,12.8170266]
[1769686915769,0.64599311,2930.2,2929.5,12.8170266]
[1769686915996,0.04266066,2930.1,2929.5,12.8170266]
[1769686916366,0.04266066,2930.1,2929.5,13.67040514]
[1769686916998,0.04266066,2930.1,2929.7,0.002]
[1769686917396,0.04366066,2930.1,2929.7,0.002]
[1769686917889,0.71169271,2930.1,2929.7,12.95037874]
[1769686918097,0.001,2930.1,2929.7,12.95037874]
[1769686918282,0.001,2930.1,2929.8,0.03413202]
[1769686918476,0.001,2930.1,2929.7,0.002]
[1769686918477,0.001,2930.1,2929.9,12.94837874]
[1769686919487,0.001,2930.1,2929.7,12.95037874]
[1769686919901,0.001,2930.1,2929.8,0.85330056]
[1769686920611,0.001,2930.1,2929.8,15.52336815]
[1769686940544,0.001,2929.9,2929.8,15.52336815]
[1769686940843,0.001,2930.3,2929.8,15.52336815]
[1769686948882,0.001,2930.3,2929.8,2.57498941]
[1769686949086,0.001,2930.3,2929.8,0.85330056]
[1769686952257,0.001,2930.3,2930.0,0.002]
[1769686952578,0.001,2930.1,2930.0,0.002]
[1769686975715,0.001,2930.1,2930.0,12.66913647]
[1769686978443,0.001,2930.1,2930.0,0.002]
[1769687022481,0.001,2930.1,2930.0,13.48196992]
[1769687022859,0.001,2930.3,2930.0,13.48196992]
[1769687024669,0.001,2930.3,2930.0,14.83036691]
[1769687025482,0.001,2930.3,2930.0,13.48196992]
[1769687029287,0.001,2930.3,2930.0,0.002]
[1769687033509,0.001,2930.1,2930.0,0.002]
[1769687037800,0.001,2930.1,2929.8,0.002]
[1769687043007,5.56312344,2930.1,2929.5,0.002]
[1769687043187,1.43313797,2930.0,2929.5,0.002]
[1769687043584,0.04266211,2930.0,2929.5,0.002]
[1769687044710,0.85327144,2929.9,2929.5,0.002]
[1769687044910,0.04266502,2929.8,2929.5,0.002]
[1769687047795,0.89596879,2929.8,2929.5,0.002]
[1769687047997,0.04266502,2929.8,2929.5,0.002]
[1769687048588,0.89595616,2929.9,2929.5,0.002]
[1769687048788,0.43089322,2929.8,2929.5,0.002]
[1769687052533,0.89593677,2929.9,2929.5,0.002]
[1769687054345,0.89593677,2929.9,2929.5,12.75809927]
[1769687055242,0.04266357,2929.9,2929.5,12.75809927]
[1769687055442,0.85327087,2930.0,2929.5,12.75809927]
[1769687056957,0.04266357,2929.9,2929.7,0.002]
[1769687057262,0.04366066,2930.1,2929.7,0.002]
[1769687060792,6.41536576,2930.0,2929.3,0.002]
[1769687060949,1.02986314,2929.9,2929.3,12.75809927]
[1769687061154,0.04266357,2929.9,2929.3,12.75809927]
[1769687064399,0.89593877,2929.9,2929.3,12.75809927]
[1769687069012,0.89593877,2929.9,2929.5,0.002]
[1769687069211,0.89693877,2929.9,2929.5,0.002]
[1769687072412,0.89693877,2929.9,2929.3,0.002]
[1769687072577,1.28430913,2929.8,2929.3,0.002]
[1769687072908,0.04266648,2929.7,2929.3,0.002]
[1769687075513,0.89601085,2929.7,2929.3,0.002]
[1769687077118,0.89601085,2929.7,2929.1,13.42014312]
[1769687077319,1.92062026,2929.7,2929.1,13.42014312]
[1769687077531,0.57648214,2929.6,2929.1,13.42014312]
[1769687078532,0.57648214,2929.6,2929.1,0.002]
[1769687078533,0.89605734,2929.5,2929.1,0.002]
[1769687079801,0.04266939,2929.5,2929.1,0.002]
[1769687080527,5.59020978,2929.1,2928.2,0.002]
[1769687080819,1.39318449,2929.0,2928.2,0.002]
[1769687081006,2.41812645,2929.0,2928.2,0.002]
[1769687081194,1.39318449,2929.0,2928.2,0.002]
[1769687081588,1.02494196,2928.9,2928.2,0.002]
[1769687081787,1.0589683,2928.9,2928.2,0.002]
[1769687082090,0.80083362,2928.8,2928.2,0.002]
[1769687082620,0.80083362,2928.8,2928.0,0.002]
[1769687082621,5.55618344,2928.6,2928.0,0.002]
[1769687083518,1.0251486,2928.5,2928.0,0.002]
[1769687084093,5.55222344,2928.4,2927.7,0.002]
[1769687084495,0.03402634,2928.3,2927.7,0.002]
[1769687084694,0.88782231,2928.1,2927.3,13.41814312]
[1769687085415,1.02527823,2928.0,2927.3,13.41814312]
[1769687085610,1.02527823,2928.0,2927.3,14.13314312]
[1769687085816,1.02527823,2928.0,2927.4,13.42014312]
[1769687086924,1.87911095,2928.0,2927.4,13.42014312]
[1769687087294,1.02527823,2928.0,2927.4,13.42014312]
[1769687087497,1.61056043,2928.0,2927.4,13.42014312]
[1769687087723,1.02527823,2928.0,2927.4,13.42014312]
[1769687091822,1.06796948,2928.0,2927.4,13.42014312]
[1769687092862,0.04268979,2928.1,2927.4,13.42014312]
[1769687093160,0.04268979,2928.1,2927.6,0.002]
[1769687093322,0.04268979,2928.1,2927.7,13.41814312]
[1769687093664,1.32762919,2928.1,2927.7,13.41814312]
[1769687093854,1.32762899,2928.1,2927.7,13.41814312]
[1769687094248,0.47383224,2928.1,2927.7,13.41814312]
[1769687094621,1.32763057,2928.1,2927.7,13.41814312]
[1769687094920,0.47383224,2928.1,2927.7,13.41814312]
[1769687095326,1.32763069,2928.1,2927.7,13.41814312]
[1769687095739,1.32763069,2928.1,2927.6,0.002]
[1769687095740,0.85375418,2928.3,2927.8,13.58096356]
[1769687096248,3.41483897,2928.4,2927.8,13.58096356]
[1769687096249,0.85373384,2928.4,2927.8,13.58096356]
[1769687096733,7.18369346,2928.5,2927.8,13.58096356]
[1769687097343,6.33,2928.5,2927.8,13.58096356]
[1769687097641,6.33,2928.5,2927.8,16.1347059]
[1769687099656,1.18690253,2928.6,2927.8,16.1347059]
[1769687100156,1.18690253,2928.6,2927.8,15.28082691]
[1769687100383,1.18690253,2928.6,2927.8,13.58096356]
[1769687104966,0.001,2928.4,2927.8,13.58096356]
[1769687105171,0.001,2928.4,2927.8,14.43484567]
[1769687105796,0.001,2928.4,2927.8,14.43484444]
[1769687107171,0.001,2928.4,2927.8,13.58096356]
[1769687107377,0.001,2928.4,2927.8,16.13470398]
[1769687107677,0.001,2928.4,2927.8,15.28083205]
[1769687107875,0.001,2928.4,2927.8,16.13471015]
[1769687108177,0.001,2928.4,2927.8,16.13469881]
[1769687109162,0.001,2928.4,2927.8,15.28083205]
[1769687109463,0.001,2928.4,2927.8,16.13471391]
[1769687110349,0.001,2928.4,2928.0,13.58096356]
[1769687115993,0.001,2928.4,2928.0,14.43478502]
[1769687116216,0.33325179,2928.6,2928.1,13.58096356]
[1769687116356,0.33325179,2928.6,2928.3,13.58096356]
[1769687118274,0.33325179,2928.6,2928.2,0.715]
[1769687118510,0.79337736,2928.6,2928.2,0.715]
[1769687119211,0.33325179,2928.6,2928.2,0.715]
[1769687123304,0.33325179,2928.6,2928.3,0.715]
[1769687123695,0.33325179,2928.6,2928.2,0.715]
[1769687128213,0.33325179,2928.6,2928.4,0.002]
[1769687129718,0.33325179,2928.6,2928.2,0.715]
[1769687129719,2.19992246,2928.5,2926.8,13.57832415]
[1769687129923,0.03402634,2928.1,2926.9,13.57632415]
[1769687130120,0.03402634,2928.3,2927.1,13.57632415]
[1769687130419,9.5615577,2928.4,2927.1,13.57632415]
[1769687130717,1.02518713,2928.2,2927.1,13.57632415]
[1769687130910,1.02518713,2928.2,2927.3,13.57632415]
[1769687131717,0.85379597,2928.1,2927.3,13.57632415]
[1769687132290,1.02518713,2928.0,2927.3,13.57632415]
[1769687133111,1.02518713,2928.0,2927.3,14.43034951]
[1769687133312,1.38976565,2928.0,2927.3,14.43034951]
[1769687133513,1.95562985,2928.0,2927.3,13.57632415]
[1769687133723,0.93044272,2928.0,2927.3,13.57632415]
[1769687133899,1.02518713,2927.9,2927.3,13.57632415]
[1769687134100,1.02518713,2927.9,2927.3,14.43034548]
[1769687134803,1.02518713,2927.9,2927.3,13.57632415]
[1769687135626,1.02518713,2927.9,2927.3,14.43035153]
[1769687135827,1.02518713,2927.9,2927.3,13.57632415]
[1769687136427,1.02518713,2927.9,2927.3,14.43035149]
[1769687137123,1.24954531,2927.9,2927.3,13.92179633]
[1769687137424,0.22435818,2927.9,2927.3,13.92179633]
[1769687138431,0.36457852,2928.0,2927.3,13.92179633]
[1769687138797,0.36457852,2928.0,2927.3,14.77582506]
[1769687138993,0.36457852,2928.0,2927.3,13.92179633]
[1769687139228,1.21840421,2928.0,2927.3,0.85402292]
[1769687139397,0.36457852,2928.0,2927.3,0.85402292]
[1769687139598,1.05266272,2927.9,2927.3,0.85402292]
[1769687140238,1.05266272,2927.9,2927.2,14.77583261]
[1769687140400,0.001,2927.8,2927.3,13.92179633]
[1769687140605,0.001,2927.8,2927.3,14.77580897]
[1769687140835,0.001,2927.8,2927.3,14.77580149]
[1769687144244,0.001,2927.8,2927.3,14.77582205]
[1769687146638,0.36457852,2928.0,2927.6,13.92179633]
[1769687146845,0.36457852,2928.0,2927.7,14.63779633]
[1769687147241,0.36457852,2928.0,2927.7,0.716]
[1769687148110,0.36457852,2928.0,2927.7,0.38226898]
[1769687148442,0.36457852,2928.0,2927.6,0.716]
[1769687148838,10.52764668,2928.0,2927.0,14.77589977]
[1769687149039,10.70351404,2927.9,2927.0,13.92179633]
[1769687149211,10.70351404,2927.9,2927.0,14.77591068]
[1769687149612,0.85388346,2927.8,2927.0,14.77591068]
[1769687149812,11.557377,2927.9,2927.0,14.77591068]
[1769687150013,1.39428376,2927.9,2927.0,14.77591068]
[1769687150219,2.24814231,2927.9,2927.0,16.66675859]
[1769687150620,2.24814104,2927.9,2927.0,16.66675859]
[1769687151050,0.85385728,2927.9,2927.0,16.66675859]
[1769687151744,0.001,2927.7,2927.0,16.66675859]
[1769687155044,0.001,2927.7,2927.2,13.92179633]
[1769687155247,0.001,2927.7,2927.3,13.75199533]
[1769687155453,0.001,2927.7,2927.3,0.716]
[1769687157662,0.93202303,2927.7,2927.3,0.27111658]
[1769687157864,0.93202303,2927.7,2927.2,0.716]
[1769687157865,10.24125331,2927.7,2927.2,0.716]
[1769687158449,11.09517833,2927.7,2927.0,0.716]
[1769687160489,11.12920467,2927.7,2926.7,13.03599533]
[1769687160629,11.12920467,2927.7,2926.6,0.002]
[1769687160630,9.30923028,2927.5,2926.6,0.002]
[1769687161033,9.30923028,2927.4,2926.6,0.002]
[1769687161571,9.30923028,2927.2,2926.6,0.002]
[1769687161960,9.30923028,2927.2,2926.5,0.002]
[1769687162471,9.30725028,2927.0,2926.5,0.002]
[1769687162685,1.01613379,2926.9,2926.5,0.002]
[1769687163187,0.85406865,2927.2,2926.5,13.03799533]
[1769687163392,0.85404749,2927.3,2926.5,13.03799533]
[1769687164050,0.85404749,2927.3,2926.8,0.002]
[1769687165810,16.49127239,2927.4,2926.8,0.002]
[1769687168617,7.18402211,2927.4,2926.8,0.002]
[1769687168825,1.06000227,2927.3,2926.8,0.002]
[1769687169516,1.91403741,2927.3,2926.8,0.002]
[1769687170993,1.06000227,2927.3,2926.8,0.002]
[1769687171493,1.91403689,2927.3,2926.8,0.002]
[1769687173192,11.25531351,2927.3,2926.8,0.002]
[1769687173496,2.10013513,2927.2,2926.8,0.002]
[1769687175028,12.26147174,2927.2,2926.8,0.002]
[1769687175526,2.10013513,2927.2,2926.8,0.002]
[1769687175706,2.9541944,2927.2,2926.8,0.002]
[1769687176025,0.001,2927.1,2926.8,0.002]
[1769687176239,0.001,2927.1,2926.8,13.03799533]
[1769687177028,0.001,2927.1,2926.5,0.002]
[1769687177233,0.001,2927.1,2926.6,13.03599533]
[1769687178300,0.1925054,2927.1,2926.6,13.03599533]
[1769687179733,0.1925054,2927.1,2926.6,13.89022562]
[1769687179934,0.001,2927.1,2926.6,13.89022562]
[1769687180834,0.001,2927.1,2926.6,13.03599533]
[1769687181133,0.001,2927.1,2926.6,13.89022309]
[1769687187250,0.001,2927.1,2926.6,13.89021513]
[1769687188042,0.001,2927.1,2926.8,0.002]
[1769687188461,0.001,2926.9,2926.8,0.002]
[1769687194471,6.33,2927.4,2926.9,13.69791765]
[1769687195253,0.001,2927.7,2926.9,13.69791765]
[1769687196486,0.001,2927.7,2927.0,0.85411684]
[1769687196660,0.001,2927.7,2927.0,14.55203449]
[1769687200059,0.001,2927.7,2927.2,13.69791765]
[1769687200493,0.001,2927.5,2927.2,13.69791765]
[1769687201522,0.001,2927.7,2927.4,13.69791765]
[1769687201729,0.36457852,2928.0,2927.5,13.69791765]
[1769687203685,0.36457852,2928.0,2927.6,14.55185944]
[1769687206919,12.29522492,2928.5,2927.6,14.55185944]
[1769687207117,13.14890827,2928.5,2927.6,14.55185944]
[1769687207287,1.65635336,2928.4,2927.6,14.55185944]
[1769687209410,2.51006706,2928.4,2927.6,14.55185944]
[1769687209615,1.65635336,2928.4,2927.6,15.26785944]
[1769687211417,1.16081469,2928.6,2927.6,15.26785944]
[1769687211928,13.45603961,2928.6,2927.6,15.26785944]
[1769687212628,0.001,2928.2,2927.6,15.26785944]
[1769687214511,0.001,2928.2,2927.6,15.26785818]
[1769687230361,0.001,2928.2,2927.8,12.81685477]
[1769687231365,0.001,2928.2,2927.8,14.2555343]
[1769687232243,0.001,2928.2,2928.0,12.81685477]
[1769687234370,0.001,2928.2,2928.0,13.67067253]
[1769687234545,0.001,2928.2,2928.0,12.81685477]
[1769687235878,0.001,2928.2,2928.0,13.670677]
[1769687236974,0.001,2928.2,2928.0,12.81685477]
[1769687238084,0.001,2928.2,2928.0,0.85382273]
[1769687238461,0.001,2928.2,2927.9,0.85382722]
[1769687238665,0.001,2928.2,2927.9,13.67068199]
[1769687239194,0.001,2928.2,2927.8,0.85386111]
[1769687239351,0.001,2928.2,2927.9,0.85385316]
[1769687241023,0.001,2928.2,2927.9,12.81685477]
[1769687241223,0.001,2928.2,2927.9,13.67070062]
[1769687243717,0.001,2928.2,2927.9,13.67069778]
[1769687246933,0.001,2928.0,2927.9,13.67069778]
[1769687247230,0.001,2928.2,2927.9,15.37932034]
[1769687248130,0.001,2928.2,2927.9,14.52547733]
[1769687248334,0.001,2928.2,2927.9,12.81685477]
[1769687248537,0.001,2928.2,2927.7,3.41564152]
[1769687248538,0.001,2928.2,2927.8,0.85386146]
[1769687250948,0.001,2928.2,2927.7,3.41564152]
[1769687252432,0.001,2928.2,2927.7,16.76533815]
[1769687258843,0.001,2928.0,2927.7,16.76533815]
[1769687259060,0.001,2928.0,2927.8,1.83352508]
[1769687261139,0.001,2928.0,2927.9,0.85385429]
[1769687262447,0.001,2928.2,2927.9,14.20355092]
[1769687270392,0.001,2928.2,2927.9,14.20555092]
[1769687270750,0.001,2928.0,2927.9,14.20555092]
[1769687271054,0.001,2928.2,2927.9,15.38589065]
[1769687280105,0.001,2928.2,2927.9,2.03619402]
[1769687281004,0.30714976,2928.6,2927.9,14.8679992]
[1769687282479,0.001,2928.4,2927.9,14.8679992]
[1769687294358,0.001,2928.2,2928.1,0.002]
[1769687294646,0.001,2928.2,2928.1,0.717]
[1769687296356,0.001,2928.2,2928.1,2.24400345]
[1769687298343,0.001,2928.2,2928.1,3.09779942]
[1769687303073,0.001,2928.4,2928.1,3.09779942]
[1769687303251,0.00709827,3159.0,2928.1,3.09779942]
[1769687303252,12.29720492,2929.3,2928.3,12.83180518]
[1769687303446,12.29720492,2929.3,2928.4,0.03414834]
[1769687304064,12.29720492,2929.3,2928.1,3.09779942]
[1769687304260,12.29720492,2929.3,2928.1,14.40260115]
[1769687305172,12.29720492,2929.1,2928.1,14.40260115]
[1769687306037,12.29820492,2929.1,2928.1,14.40260115]
[1769687309673,13.15171153,2929.1,2928.1,14.40260115]
[1769687309878,13.15171153,2929.1,2928.1,1.57079597]
[1769687310188,12.29720492,2928.9,2928.1,1.57079597]
[1769687313380,12.29720492,2928.9,2928.1,0.002]
[1769687316420,1.65656197,2929.0,2928.2,13.22573757]
[1769687317606,0.001,2928.7,2928.2,13.22573757]
[1769687318592,0.001,2928.7,2928.3,0.85373766]
[1769687321117,0.001,2928.7,2928.3,14.07947523]
[1769687321479,0.001,2928.7,2928.3,0.85373766]
[1769687321680,0.001,2928.7,2928.2,0.85374707]
[1769687324003,0.001,2928.7,2928.1,0.85577675]
[1769687324188,1.23082049,2928.7,2928.1,0.85577675]
[1769687326285,0.001,2928.7,2928.1,0.85577675]
[1769687326612,0.001,2928.7,2928.1,1.57077675]
[1769687329195,0.001,2928.7,2928.3,0.002]
[1769687335009,0.001,2928.7,2928.3,0.85573766]
[1769687335916,0.001,2928.7,2928.3,13.83737124]
[1769687336117,0.001,2928.7,2928.4,12.98163358]
[1769687337197,0.001,2928.7,2928.4,13.83533564]
[1769687337402,0.001,2928.7,2928.4,12.98163358]
[1769687337804,0.001,2928.7,2928.4,13.83533503]
[1769687338418,0.001,2928.7,2928.4,12.98163358]
[1769687340027,0.001,2928.7,2928.3,1.73085431]
[1769687340028,12.29820492,2928.7,2928.3,1.73085431]
[1769687340196,13.52702541,2928.6,2928.1,0.002]
[1769687340931,0.001,2928.5,2928.1,0.002]
[1769687341829,0.001,2928.5,2928.1,12.98363358]
[1769687342028,0.001,2928.5,2928.1,13.83742047]
[1769687342342,0.001,2928.5,2928.1,12.98363358]
[1769687343039,0.001,2928.5,2928.1,13.83742894]
[1769687344044,0.001,2928.5,2928.1,12.98363358]
[1769687344343,0.001,2928.5,2928.1,0.002]
[1769687345248,1.23092049,2928.5,2928.1,0.002]
[1769687348123,13.52812541,2928.5,2928.1,0.002]
[1769687348428,14.38181052,2928.5,2928.1,0.002]
[1769687348628,14.38180502,2928.5,2928.1,0.002]
[1769687348829,13.52812541,2928.5,2928.1,0.002]
[1769687349031,1.43817961,2928.4,2928.1,0.002]
[1769687349230,13.52812541,2928.5,2928.1,0.002]
[1769687350549,14.3818118,2928.5,2928.1,0.002]
[1769687352169,14.3818118,2928.5,2927.9,0.002]
[1769687352324,14.3818118,2928.5,2928.3,0.002]
[1769687354871,2.08460688,2928.5,2928.3,0.002]
[1769687355079,0.85468639,2928.5,2928.3,0.002]
[1769687356568,0.001,2928.5,2928.0,0.002]
[1769687356787,0.2296597,2928.5,2928.0,0.002]
[1769687358488,0.2296597,2928.5,2928.0,12.98363358]
[1769687358672,1.08336044,2928.5,2928.0,12.98363358]
[1769687358870,0.44979851,2928.4,2928.0,12.98363358]
[1769687359059,1.08336044,2928.5,2928.0,12.98363358]
[1769687361385,0.2296597,2928.5,2928.0,12.98363358]
[1769687361984,1.08334368,2928.5,2928.0,12.98363358]
[1769687363386,0.2296597,2928.5,2928.0,12.98363358]
[1769687364481,0.2296597,2928.5,2928.2,0.002]
[1769687364681,0.001,2928.3,2928.2,0.002]
[1769687365888,0.2296597,2928.5,2928.2,12.75354452]
[1769687370793,3.41417253,2929.0,2928.2,12.75354452]
[1769687371000,1.19508002,2928.9,2928.2,12.75354452]
[1769687376332,0.001,2928.7,2928.2,12.75354452]
[1769687387425,0.001,2928.7,2928.2,0.002]
[1769687388549,0.001,2928.7,2928.4,0.002]
[1769687392563,0.001,2928.7,2928.2,0.002]
[1769687392564,8.35218796,2928.6,2928.2,0.002]
[1769687392733,2.06513829,2928.5,2928.0,0.002]
[1769687399174,2.9188187,2928.5,2928.0,0.002]
[1769687399358,15.21701362,2928.5,2927.9,0.002]
[1769687401070,15.21801362,2928.5,2927.9,0.002]
[1769687402339,2.9198187,2928.5,2927.9,0.002]
[1769687402654,1.46867241,2928.4,2927.9,0.002]
[1769687402853,0.85373766,2928.3,2927.9,0.002]
[1769687403049,2.32240095,2928.4,2927.9,0.002]
[1769687403369,1.46867241,2928.4,2927.9,0.002]
[1769687403873,0.001,2928.5,2927.9,13.20773692]
[1769687405072,0.001,2928.5,2928.1,13.20573692]
[1769687407582,0.001,2928.5,2928.1,14.05952658]
[1769687407746,0.001,2928.5,2928.1,13.20573692]
[1769687408277,0.001,2928.5,2928.1,14.05953176]
[1769687408578,0.001,2928.5,2928.1,13.20573692]
[1769687409082,0.001,2928.5,2928.1,14.05952933]
[1769687410078,0.001,2928.5,2928.1,15.80722264]
[1769687410276,6.33,2928.8,2928.2,13.20573692]
[1769687410646,0.17645352,2929.0,2928.2,13.20573692]
[1769687411464,0.17645352,2929.0,2928.3,0.85373766]
[1769687411658,0.17645352,2929.0,2928.4,13.20573692]
[1769687411956,0.17645352,2929.0,2928.5,0.715]
[1769687412649,0.17645352,2929.0,2928.5,13.92073692]
[1769687415381,0.17645352,2929.0,2928.6,0.715]
[1769687420470,0.17645352,2929.0,2928.5,14.7744128]
[1769687422210,0.17645352,2929.0,2928.5,2.53393517]
[1769687422379,0.17645352,2929.0,2928.5,16.59334781]
[1769687423520,0.17645352,2929.0,2928.5,15.73967209]
[1769687424377,0.17645352,2929.0,2928.7,0.002]
[1769687424688,0.001,2928.8,2928.7,0.002]
[1769687440340,0.001,2928.8,2928.7,13.14144951]
[1769687442142,0.17645352,2929.0,2928.7,13.14144951]
[1769687442143,0.12554515,2929.0,2928.8,13.13944951]
[1769687442310,0.001,2929.1,2928.8,13.13944951]
[1769687447127,0.001,2929.1,2928.8,13.99303794]
[1769687448718,0.001,2928.9,2928.8,13.99303794]
[1769687460281,0.001,2928.9,2928.8,13.99503794]
[1769687460574,0.001,2928.9,2928.8,15.33584081]
[1769687461083,0.001,2929.1,2928.9,12.61375745]
[1769687463086,0.001,2929.1,2929.0,0.85353362]
[1769687464882,0.001,2929.5,2929.1,12.61375745]
[1769687465086,0.001,2929.5,2929.2,0.715]
[1769687465249,0.001,2929.5,2929.2,1.56845216]
[1769687465455,0.001,2929.5,2929.3,1.47121108]
[1769687468526,0.001,2929.5,2929.3,2.32465463]
[1769687470506,0.001,2929.5,2929.3,1.47121108]
[1769687470804,0.001,2929.5,2929.3,2.32465517]
[1769687474527,0.001,2929.5,2929.3,0.85344409]
[1769687476529,0.001,2929.5,2929.3,13.46720154]
[1769687480031,0.001,2929.5,2929.3,0.85344409]
[1769687480605,0.001,2929.5,2929.4,0.715]
[1769687482019,0.001,2929.5,2929.4,1.56841708]
[1769687484164,0.001,2929.5,2929.4,15.94176987]
[1769687488650,0.001,2929.5,2929.4,3.32801242]
[1769687492026,0.001,2929.5,2929.4,1.56841708]
[1769687500826,0.001,2929.5,2929.1,0.03414017]
[1769687501031,0.001,2929.5,2929.2,1.5684561]
[1769687501759,0.001,2929.5,2929.3,0.85344569]
[1769687502064,0.001,2929.5,2929.3,0.85342728]
[1769687502228,0.001,2929.5,2929.4,0.85341708]
[1769687503171,0.001,2929.5,2929.3,3.4137796]
[1769687504269,0.001,2929.5,2929.3,0.85344621]
[1769687509287,0.001,2929.5,2929.2,0.85345871]
[1769687509595,0.001,2929.5,2929.3,0.715]
[1769687510692,0.001,2929.5,2929.3,1.5684199]
[1769687512000,0.001,2929.5,2929.4,0.03413668]
[1769687512398,0.001,2929.5,2929.3,1.5684199]
[1769687512603,0.001,2929.5,2929.3,1.60255774]
[1769687513815,0.001,2929.5,2929.3,14.83787209]
[1769687514772,0.001,2929.5,2929.4,13.30358887]
[1769687514966,0.1342816,2929.9,2929.4,13.26945219]
[1769687515706,0.1342816,2929.9,2929.5,0.85338795]
[1769687516075,0.1342816,2929.9,2929.5,13.75958311]
[1769687521305,0.001,2930.1,2929.5,13.75958311]
[1769687521476,0.001,2930.1,2929.6,0.98683837]
[1769687521677,0.001,2930.1,2929.6,13.92716788]
[1769687521877,0.001,2930.1,2929.6,13.89303353]
[1769687522910,0.001,2930.1,2929.7,0.85332969]
[1769687523113,0.001,2930.1,2929.7,13.75952485]
[1769687523409,0.001,2930.1,2929.8,1.85010022]
[1769687523616,0.001,2930.1,2929.8,1.8159682]
[1769687524481,0.001,2930.1,2929.7,0.85332969]
[1769687525080,0.001,2930.1,2929.6,3.41331876]
[1769687526740,0.001,2930.1,2929.6,16.31951392]
[1769687526898,0.001,2930.1,2929.7,12.90619516]
[1769687527713,0.001,2930.1,2929.8,13.75949572]
[1769687527922,0.001,2930.1,2929.9,1.7172698]